bitfinex-derivatives/quotes_ETHF0:USTF0_20210110
["timestamp","ask_amount","ask_price","bid_price","bid_amount"]
[1610274989765,53.6358,1292.7,1292.6,4.00959]
[1610274992464,53.6358,1292.7,1292.6,5.58039]
[1610274994265,48.6358,1292.7,1292.6,5.58039]
[1610274995670,38.7127,1292.7,1292.6,5.58039]
[1610274995870,30.864,1292.7,1292.6,5.58039]
[1610274996069,24.1319,1292.7,1292.6,35.58039]
[1610274996469,17.3738,1292.7,1292.6,35.58039]
[1610274996870,8.0797,1292.7,1292.6,35.58039]
[1610274997072,48.806,1295.0,1292.6,35.58039]
[1610274997872,48.806,1295.0,1294.9,4.00959]
[1610274998073,4.00959,1296.4,1294.9,4.00959]
[1610274998271,6.0146,1299.0,1294.9,4.00959]
[1610274998873,6.0146,1299.0,1294.9,36.03699]
[1610274999874,6.0146,1299.0,1296.9,4.00959]
[1610275000276,6.0146,1299.0,1295.7,4.2508325]
[1610275000475,8.3751,1299.0,1295.7,4.2508325]
[1610275000876,8.3751,1299.0,1295.6,4.25122074]
[1610275001277,8.1172,1299.0,1295.6,4.25122074]
[1610275001477,6.7172,1299.0,1295.6,4.25122074]
[1610275001678,3.3752,1299.0,1295.9,4.2502454]
[1610275001877,4.00959,1297.2,1297.0,4.00959]
[1610275002078,6.16419,1297.2,1295.9,6.1833454]
[1610275002278,2.1546,1297.2,1295.9,6.1833454]
[1610275003883,6.16419,1297.2,1297.0,4.00959]
[1610275004084,2.1546,1297.2,1297.0,4.00959]
[1610275005188,51.0003,1298.7,1297.0,4.00959]
[1610275005787,51.0003,1298.7,1297.4,4.00959]
[1610275006189,51.0003,1298.7,1296.4,4.24812822]
[1610275006389,52.8585,1298.7,1296.4,4.24812822]
[1610275006989,52.8585,1298.7,1296.4,34.24812822]
[1610275007189,52.8585,1298.7,1296.5,4.24786453]
[1610275007388,52.8585,1298.7,1296.6,30.0]
[1610275007590,52.8585,1298.7,1296.6,34.24769307]
[1610275007791,4.00959,1298.2,1297.9,4.00959]
[1610275007990,6.23759,1298.2,1296.7,34.24713269]
[1610275008391,2.228,1298.2,1296.8,4.24659902]
[1610275008591,2.103,1298.2,1296.9,30.0]
[1610275008792,52.8585,1298.7,1296.9,30.0]
[1610275008793,52.8585,1298.7,1298.2,2.772]
[1610275009793,52.8585,1298.7,1298.6,4.00959]
[1610275009992,52.8585,1298.7,1298.2,2.772]
[1610275011894,52.8585,1298.7,1298.6,4.00959]
[1610275013096,52.8585,1298.7,1298.6,7.7818974]
[1610275013296,1.8582,1298.7,1298.6,7.7818974]
[1610275013496,2.3605,1299.0,1298.6,7.7818974]
[1610275013695,50.4724,1300.0,1298.6,7.7818974]
[1610275013896,50.4724,1300.0,1299.3,4.00959]
[1610275014297,0.14390694,1302.7,1299.3,4.00959]
[1610275014496,6.811,1302.8,1299.3,34.00959]
[1610275014696,5.577,1302.8,1299.3,40.08531686]
[1610275015097,5.577,1302.8,1299.9,30.0]
[1610275015498,5.577,1302.8,1300.1,3.76799879]
[1610275015698,0.14490849,1304.5,1300.5,3.76714647]
[1610275015897,0.14490849,1304.5,1302.2,4.00959]
[1610275016098,0.35198082,1304.6,1302.2,4.00959]
[1610275016298,5.8069,1304.6,1302.2,4.00959]
[1610275016496,0.35230833,1304.8,1302.2,4.00959]
[1610275016697,0.14506814,1304.8,1302.2,4.00959]
[1610275017098,0.14518139,1305.0,1302.2,4.00959]
[1610275017298,0.35280791,1305.2,1302.2,4.00959]
[1610275017498,0.35280791,1305.2,1301.1,33.76491906]
[1610275017700,2.40200791,1305.2,1301.1,33.76491906]
[1610275017898,4.00959,1302.8,1302.0,4.00959]
[1610275018098,6.49829,1302.8,1302.0,4.00959]
[1610275018498,24.49829,1302.8,1302.0,4.00959]
[1610275018899,24.49829,1302.8,1301.2,3.76490276]
[1610275018900,24.49829,1302.8,1301.9,3.2943182]
[1610275019300,24.49829,1302.8,1301.8,3.29469176]
[1610275019701,24.49829,1302.8,1301.7,3.2955107]
[1610275019901,4.00959,1301.8,1301.3,3.29621879]
[1610275020100,6.17449,1301.8,1301.3,3.29621879]
[1610275020402,6.17449,1301.8,1301.0,3.29654485]
[1610275021304,2.1649,1301.8,1301.0,3.29654485]
[1610275021705,2.1649,1301.8,1301.1,3.29665011]
[1610275021904,2.1649,1301.8,1301.7,4.00959]
[1610275024808,2.1649,1301.8,1301.7,34.00959]
[1610275025207,20.4887,1302.8,1301.7,34.00959]
[1610275025608,20.4887,1302.8,1302.1,3.29316882]
[1610275025909,20.4887,1302.8,1302.1,33.29316882]
[1610275026109,20.4887,1302.8,1302.7,4.00959]
[1610275027610,20.4887,1302.8,1302.7,34.00959]
[1610275028310,18.0,1302.8,1302.7,34.00959]
[1610275028511,18.0,1302.8,1302.7,4.00959]
[1610275029210,18.0,1302.8,1302.7,34.00959]
[1610275029410,18.0,1302.8,1302.7,37.77003991]
[1610275029812,18.0,1302.8,1302.7,34.00959]
[1610275030112,18.0,1302.8,1302.7,4.00959]
[1610275031713,18.0,1302.8,1302.7,34.00959]
[1610275032616,7.5982,1302.8,1302.7,38.23807426]
[1610275033018,7.5982,1302.8,1302.7,4.00959]
[1610275033217,1.9483,1304.9,1302.7,4.00959]
[1610275033416,1.9483,1304.9,1302.7,34.00959]
[1610275033616,1.9483,1304.9,1304.7,2.81829284]
[1610275034015,1.9483,1304.9,1304.8,4.00959]
[1610275034918,0.78032159,1307.9,1304.8,4.00959]
[1610275035117,0.7808602,1308.0,1304.8,4.00959]
[1610275035321,4.18695824,1308.3,1305.4,2.81700902]
[1610275035520,4.18695824,1308.3,1305.4,5.23050902]
[1610275035723,6.48393429,1308.4,1305.5,2.8167436]
[1610275036123,6.48393429,1308.4,1305.4,2.4135]
[1610275036124,4.00959,1307.4,1306.6,4.00959]
[1610275036323,6.29799,1307.4,1306.6,4.00959]
[1610275036523,6.29799,1307.4,1305.7,2.81641973]
[1610275036524,6.29799,1307.4,1306.3,2.34635784]
[1610275036926,6.29799,1307.4,1306.1,2.81562941]
[1610275036927,6.29799,1307.4,1306.7,1.87709121]
[1610275037323,6.29799,1307.4,1306.8,1.87699953]
[1610275037525,6.29799,1307.4,1306.7,1.87684415]
[1610275037923,6.29799,1307.4,1306.1,2.81526623]
[1610275037924,6.29799,1307.4,1307.1,1.87668118]
[1610275038125,6.29799,1307.4,1307.3,4.00959]
[1610275038323,6.29799,1307.4,1306.6,2.81502176]
[1610275038324,6.29799,1307.4,1306.9,1.87673114]
[1610275038825,6.29799,1307.4,1307.0,1.8765112]
[1610275039026,6.29799,1307.4,1306.5,2.81476679]
[1610275039227,6.29799,1307.4,1306.3,2.81501062]
[1610275040132,4.00959,1306.4,1306.3,2.81501062]
[1610275040329,5.72849,1306.4,1306.0,3.28403916]
[1610275040628,5.72849,1306.4,1306.2,2.81506272]
[1610275041029,1.7189,1306.4,1306.2,2.81506272]
[1610275041229,1.7189,1306.4,1306.3,2.81504023]
[1610275041931,1.7189,1306.4,1306.1,2.81533051]
[1610275042129,1.7189,1306.4,1305.8,4.00959]
[1610275042330,1.7189,1306.4,1305.8,7.29410635]
[1610275044031,1.7189,1306.4,1305.8,3.28451635]
[1610275044232,6.05419,1305.9,1305.8,3.28451635]
[1610275044432,6.05419,1305.9,1305.7,3.28465203]
[1610275045336,2.0446,1305.9,1305.7,3.28465203]
[1610275045735,2.0446,1305.9,1305.6,3.28496998]
[1610275047940,2.0446,1305.9,1305.7,3.28497371]
[1610275048139,6.05419,1305.9,1305.7,3.28497371]
[1610275048338,6.05419,1305.9,1305.6,3.28506682]
[1610275048539,6.05419,1305.9,1305.7,3.28530702]
[1610275048840,6.05419,1305.9,1305.6,3.28542345]
[1610275049039,2.0446,1305.9,1305.6,3.28542345]
[1610275049443,2.2884,1307.4,1305.6,3.28542345]
[1610275049641,5.7016,1308.4,1306.2,2.34660097]
[1610275049842,5.7016,1308.4,1306.1,2.34661525]
[1610275050042,7.2277,1308.4,1305.9,2.772]
[1610275050242,4.00959,1306.2,1305.9,2.772]
[1610275051242,6.29959,1306.2,1305.4,3.28594958]
[1610275051443,6.29959,1306.2,1305.2,3.28659584]
[1610275051648,6.29959,1306.2,1304.8,3.28699998]
[1610275051845,6.29959,1306.2,1304.6,3.28775672]
[1610275052245,4.00959,1304.7,1304.4,3.28791334]
[1610275052445,5.93809,1304.7,1304.4,3.28791334]
[1610275052646,5.93809,1304.7,1304.6,2.81862101]
[1610275052947,5.93809,1304.7,1304.5,2.81874351]
[1610275053748,5.93809,1304.7,1303.4,3.75827619]
[1610275054246,4.00959,1303.8,1303.6,4.00959]
[1610275054449,6.03449,1303.8,1303.4,3.75827619]
[1610275055049,6.03449,1303.8,1303.3,3.75921636]
[1610275055350,6.03449,1303.8,1303.2,3.75951946]
[1610275055748,6.03449,1303.8,1303.1,3.76025076]
[1610275056147,4.00959,1303.2,1303.0,3.76036083]
[1610275056351,2.0249,1303.8,1303.0,3.76036083]
[1610275056748,2.0249,1303.8,1302.8,3.7605138]
[1610275057148,2.0249,1303.8,1302.9,3.76054897]
[1610275057349,2.0249,1303.8,1302.8,3.76054577]
[1610275058051,2.0249,1303.8,1302.7,3.76095922]
[1610275058250,4.00959,1302.8,1302.7,3.76095922]
[1610275058651,4.00959,1302.8,1302.6,3.76134256]
[1610275058652,5.99199,1302.8,1302.6,3.76134256]
[1610275059050,5.99199,1302.8,1302.5,3.76156916]
[1610275059851,5.99199,1302.8,1302.4,3.76170941]
[1610275060253,4.00959,1302.5,1302.4,3.76170941]
[1610275060451,6.00479,1302.5,1302.3,3.7619419]
[1610275060653,6.00479,1302.5,1302.2,3.76225555]
[1610275061452,6.00479,1302.5,1302.0,3.76246709]
[1610275061653,6.00479,1302.5,1301.9,3.76285159]
[1610275062053,6.00479,1302.5,1301.6,3.76329369]
[1610275062256,4.00959,1301.7,1301.6,3.76329369]
[1610275062457,5.97829,1301.7,1301.6,3.76329369]
[1610275063059,5.97829,1301.7,1301.5,3.76380005]
[1610275063362,5.97829,1301.7,1301.4,3.76390254]
[1610275063762,5.97829,1301.7,1300.1,4.70475006]
[1610275063763,5.97829,1301.7,1301.3,3.76404021]
[1610275064163,4.00959,1301.4,1301.3,3.76404021]
[1610275064563,6.01039,1301.4,1301.3,3.76404021]
[1610275064763,6.01039,1301.4,1301.2,3.76407367]
[1610275064963,6.01039,1301.4,1301.3,3.76384892]
[1610275065365,6.01039,1301.4,1301.2,3.76412765]
[1610275065664,6.01039,1301.4,1300.6,4.23463076]
[1610275065665,6.01039,1301.4,1301.1,3.76421818]
[1610275066063,6.01039,1301.4,1300.5,4.23474545]
[1610275066064,6.01039,1301.4,1301.2,3.76412696]
[1610275066865,6.01039,1301.4,1301.1,3.76440026]
[1610275067767,6.01039,1301.4,1301.0,3.76475401]
[1610275068165,4.00959,1301.1,1300.9,3.76498909]
[1610275068566,4.00959,1301.1,1300.8,3.76532917]
[1610275068567,5.88839,1301.1,1300.8,3.76532917]
[1610275068766,5.88839,1301.1,1300.7,3.76567031]
[1610275069166,5.88839,1301.1,1300.6,3.76564745]
[1610275069968,5.88839,1301.1,1299.9,4.23635338]
[1610275069969,5.88839,1301.1,1300.5,3.76641685]
[1610275070170,4.00959,1300.6,1300.4,3.76691072]
[1610275070569,4.00959,1300.6,1300.2,3.76718815]
[1610275070770,4.00959,1300.6,1300.1,3.76758697]
[1610275071169,4.00959,1300.6,1300.0,3.76763771]
[1610275071971,4.00959,1300.6,1300.4,3.29732139]
[1610275072571,1.7279,1300.7,1300.5,3.29700827]
[1610275072770,1.7279,1300.7,1300.0,7.77702666]
[1610275073170,1.8788,1301.1,1300.3,3.76686177]
[1610275073371,1.8788,1301.1,1300.7,3.76599291]
[1610275073574,2.0008,1301.4,1300.7,3.76599291]
[1610275073771,1.9687,1301.7,1300.8,3.76562284]
[1610275073972,5.9595,1303.7,1300.8,3.76562284]
[1610275074177,5.9595,1303.7,1301.6,3.29442508]
[1610275074372,4.00959,1301.7,1301.2,3.76493357]
[1610275074572,2.4279,1301.7,1301.2,3.76493357]
[1610275075172,2.4279,1301.7,1301.3,3.76435643]
[1610275075378,2.4279,1301.7,1301.4,3.76417115]
[1610275075572,5.9379,1303.6,1301.4,6.13227115]
[1610275075772,5.9379,1303.6,1301.6,3.76373496]
[1610275076174,5.9379,1303.6,1301.1,4.23733449]
[1610275076372,65.7221,1301.8,1301.7,3.29393444]
[1610275076678,65.7221,1301.8,1301.6,3.76358602]
[1610275077078,65.7221,1301.8,1301.5,3.76351064]
[1610275077680,65.7221,1301.8,1301.4,3.76382897]
[1610275078080,65.7221,1301.8,1301.3,3.76424361]
[1610275078279,4.00959,1301.4,1301.1,3.76465948]
[1610275078680,4.00959,1301.4,1300.8,3.76550807]
[1610275078681,6.23379,1301.4,1300.8,3.76550807]
[1610275079080,6.23379,1301.4,1301.1,3.29556519]
[1610275079280,6.23379,1301.4,1301.0,3.29612484]
[1610275079680,6.23379,1301.4,1300.3,3.76699982]
[1610275079881,6.23379,1301.4,1300.0,3.76753799]
[1610275080282,4.00959,1300.1,1300.0,3.76753799]
[1610275080482,6.30229,1300.1,1300.0,3.76753799]
[1610275080781,6.30229,1300.1,1298.9,4.00959]
[1610275080782,6.30229,1300.1,1299.8,3.7678403]
[1610275081781,2.2927,1300.1,1299.8,3.7678403]
[1610275081982,2.2927,1300.1,1300.0,3.76759268]
[1610275082189,1.762,1300.4,1299.5,6.69547485]
[1610275082382,1.762,1300.4,1300.3,4.00959]
[1610275082584,1.762,1300.4,1300.3,7.77621465]
[1610275082883,1.762,1300.4,1300.3,4.00959]
[1610275083082,6.23379,1301.4,1300.3,4.00959]
[1610275083687,6.23379,1301.4,1300.7,3.76585831]
[1610275084187,6.23379,1301.4,1300.6,3.765783]
[1610275084385,4.00959,1301.1,1300.6,3.765783]
[1610275084586,6.38719,1301.1,1300.6,3.765783]
[1610275085389,6.38719,1301.1,1300.5,3.76620284]
[1610275086390,4.00959,1300.6,1300.5,3.76620284]
[1610275086590,6.43899,1300.6,1300.3,3.76667316]
[1610275087292,6.43899,1300.6,1300.2,3.76712566]
[1610275087693,6.43899,1300.6,1300.0,3.76752815]
[1610275087892,6.43899,1300.6,1299.9,3.76756501]
[1610275088295,2.4294,1300.6,1299.7,3.76783482]
[1610275088495,2.0011,1300.0,1299.7,3.76783482]
[1610275089094,2.0011,1300.0,1299.8,3.7676209]
[1610275089293,2.0011,1300.0,1299.9,3.76739327]
[1610275089694,2.4294,1300.6,1299.9,3.76739327]
[1610275090096,2.4294,1300.6,1300.1,3.76678256]
[1610275090296,2.4294,1300.6,1300.5,4.00959]
[1610275091099,2.3776,1301.1,1300.5,4.00959]
[1610275091299,2.2242,1301.4,1300.5,7.77588589]
[1610275091697,45.6274,1301.7,1300.5,4.00959]
[1610275091898,45.6274,1301.7,1300.6,3.7659258]
[1610275092297,49.63699,1301.7,1301.1,4.00959]
[1610275092898,45.6274,1301.7,1301.1,4.00959]
[1610275093299,45.6274,1301.7,1301.1,6.12719]
[1610275093500,45.6274,1301.7,1301.2,3.76429837]
[1610275093902,45.6274,1301.7,1301.3,3.76421737]
[1610275094301,45.6274,1301.7,1301.4,3.76376002]
[1610275094501,45.6274,1301.7,1301.4,5.42796002]
[1610275094703,45.6274,1301.7,1301.5,3.76374363]
[1610275095203,45.6274,1301.7,1301.6,3.76331164]
[1610275096706,54.0699,1304.2,1301.6,3.76331164]
[1610275097307,54.0699,1304.2,1302.5,3.2918889]
[1610275097706,54.0699,1304.2,1302.6,3.29167352]
[1610275097906,6.0176,1304.1,1302.6,3.29167352]
[1610275098306,6.0176,1304.1,1302.7,3.29126777]
[1610275098607,6.0176,1304.1,1302.8,3.2913318]
[1610275099009,8.2406,1304.1,1302.7,3.29129033]
[1610275099609,8.2406,1304.1,1301.9,34.00959]
[1610275099610,2.223,1304.1,1302.8,3.29132314]
[1610275100208,2.223,1304.1,1303.0,3.2906401]
[1610275100409,2.70959,1303.7,1303.2,4.00959]
[1610275100607,1.23259,1304.1,1303.3,33.29056581]
[1610275100807,1.23259,1304.1,1303.4,3.29041498]
[1610275101208,1.23259,1304.1,1303.6,3.28993228]
[1610275101611,1.23259,1304.1,1303.8,3.28948148]
[1610275101809,1.23259,1304.1,1303.7,3.28943911]
[1610275102010,3.405,1306.2,1303.7,3.28943911]
[1610275102211,3.405,1306.2,1303.8,3.28924801]
[1610275102415,4.00959,1304.3,1303.8,3.28924801]
[1610275102612,4.00959,1304.3,1303.9,3.28915248]
[1610275103410,2.3973,1304.7,1303.9,3.28915248]
[1610275104513,4.00959,1304.2,1303.9,3.28915248]
[1610275104914,4.00959,1304.2,1304.1,3.28839987]
[1610275105314,4.00959,1304.2,1304.0,3.28845424]
[1610275106014,4.00959,1304.2,1303.8,3.28924886]
[1610275106416,4.00959,1303.9,1303.6,3.28956079]
[1610275106615,5.92039,1303.9,1303.6,3.28956079]
[1610275106818,1.9108,1303.9,1303.6,3.28956079]
[1610275107817,1.8416,1304.4,1303.6,33.28956079]
[1610275108017,1.8416,1304.4,1303.7,3.28916213]
[1610275108217,1.8416,1304.4,1303.8,30.0]
[1610275108419,1.8416,1304.4,1304.3,4.00959]
[1610275109021,2.3973,1304.7,1304.3,4.00959]
[1610275109220,4.00959,1305.0,1304.3,4.00959]
[1610275109221,4.00959,1305.0,1304.3,7.29751543]
[1610275109421,4.00959,1305.0,1304.4,30.0]
[1610275109922,4.00959,1305.0,1304.4,33.28744848]
[1610275110121,4.00959,1305.0,1304.4,3.28744848]
[1610275110322,4.00959,1305.0,1304.5,3.2873003]
[1610275110524,62.9457,1305.6,1305.0,0.99041]
[1610275112523,4.00959,1305.1,1305.0,0.99041]
[1610275112923,5.81409,1305.1,1305.0,0.99041]
[1610275114526,5.81409,1305.1,1305.0,5.0]
[1610275115327,1.8045,1305.1,1305.0,5.0]
[1610275115726,62.9457,1305.6,1305.0,5.0]
[1610275115928,62.9457,1305.6,1305.0,8.28639413]
[1610275116126,62.9457,1305.6,1305.0,38.28639413]
[1610275116326,62.9457,1305.6,1305.1,3.28628919]
[1610275116728,1.9281,1305.8,1305.2,3.28608784]
[1610275118536,4.00959,1305.3,1305.2,3.28608784]
[1610275118937,4.00959,1305.3,1305.1,3.28631422]
[1610275119137,4.00959,1305.3,1305.0,4.27708499]
[1610275119537,4.00959,1305.3,1305.0,0.99041]
[1610275120537,2.4205,1305.4,1305.0,0.99041]
[1610275122539,4.00959,1305.2,1305.0,0.99041]
[1610275122741,2.4205,1305.4,1305.0,0.99041]
[1610275123939,1.9281,1305.8,1305.0,0.99041]
[1610275124340,6.1694,1307.5,1305.0,0.99041]
[1610275124539,4.00959,1305.1,1305.0,0.99041]
[1610275124740,5.52409,1305.1,1305.0,0.99041]
[1610275126947,5.52409,1305.1,1303.4,3.75770855]
[1610275127344,5.52409,1305.1,1303.2,3.75820971]
[1610275127943,5.52409,1305.1,1303.1,3.75835991]
[1610275128144,5.52409,1305.1,1303.3,3.75824649]
[1610275128544,4.00959,1303.8,1303.2,3.75833009]
[1610275128742,6.30259,1303.8,1303.2,3.75833009]
[1610275129545,6.30259,1303.8,1303.1,3.75838956]
[1610275129945,6.30259,1303.8,1302.7,1.8374]
[1610275129946,6.30259,1303.8,1303.0,3.75877985]
[1610275130445,4.00959,1303.5,1303.0,3.75877985]
[1610275131546,6.39689,1303.5,1302.8,3.75902992]
[1610275131847,6.39689,1303.5,1302.7,3.75904983]
[1610275132347,6.39689,1303.5,1302.0,4.22893106]
[1610275132348,6.39689,1303.5,1302.6,3.75925818]
[1610275132550,4.00959,1302.7,1302.6,3.75925818]
[1610275132749,6.26219,1302.7,1302.6,3.75925818]
[1610275132949,6.26219,1302.7,1302.4,3.75998541]
[1610275133549,6.26219,1302.7,1301.2,30.0]
[1610275133550,6.26219,1302.7,1302.2,3.76089223]
[1610275133950,6.26219,1302.7,1302.0,3.76148455]
[1610275134551,4.00959,1302.1,1301.7,3.7618599]
[1610275134750,6.16929,1302.1,1301.7,3.7618599]
[1610275135150,6.16929,1302.1,1301.5,3.76243992]
[1610275135550,6.16929,1302.1,1301.4,3.76243589]
[1610275135952,6.16929,1302.1,1301.6,3.76230464]
[1610275136152,6.16929,1302.1,1301.5,3.76242555]
[1610275136650,4.00959,1301.6,1301.4,3.76250901]
[1610275136852,6.05869,1301.6,1301.4,3.76250901]
[1610275137251,6.05869,1301.6,1301.3,3.76282844]
[1610275137650,2.0491,1301.6,1301.3,3.76282844]
[1610275138054,2.1597,1302.1,1301.3,3.76282844]
[1610275138251,2.1597,1302.1,1300.8,2.385]
[1610275138252,2.1597,1302.1,1301.5,3.762422]
[1610275138451,4.00959,1301.9,1301.7,4.00959]
[1610275138653,2.1597,1302.1,1301.7,4.00959]
[1610275138852,2.2526,1302.7,1301.7,4.00959]
[1610275139051,5.6495,1303.4,1301.8,3.76141705]
[1610275139654,5.6495,1303.4,1301.7,3.76158191]
[1610275140052,5.6495,1303.4,1301.5,3.76207705]
[1610275140252,5.6495,1303.4,1301.4,3.76253854]
[1610275140453,4.00959,1301.5,1301.4,3.76253854]
[1610275140655,4.00959,1301.5,1301.2,3.76294629]
[1610275141054,4.00959,1301.5,1301.1,3.76351217]
[1610275142156,4.00959,1301.5,1301.0,3.76377968]
[1610275142857,4.00959,1301.5,1301.1,3.76344355]
[1610275143160,4.00959,1301.5,1301.1,5.31674355]
[1610275143359,2.1461,1302.5,1301.2,3.76337686]
[1610275143558,5.6495,1303.4,1301.3,3.76308996]
[1610275143959,5.6495,1303.4,1301.4,3.76269025]
[1610275144158,5.6495,1303.4,1301.4,5.39239025]
[1610275144359,5.6495,1303.4,1301.6,3.76216004]
[1610275144559,4.00959,1302.2,1302.0,4.00959]
[1610275144760,1.7049,1303.1,1302.0,4.00959]
[1610275145160,1.7049,1303.1,1302.0,9.9327156]
[1610275145359,1.7049,1303.1,1302.3,3.76068243]
[1610275145559,5.6495,1303.4,1302.3,5.67798243]
[1610275145761,5.6495,1303.4,1302.3,1.9173]
[1610275146466,5.6495,1303.4,1302.5,4.00959]
[1610275146666,5.6495,1303.4,1302.4,3.76028797]
[1610275148369,5.6495,1303.4,1302.2,3.76062884]
[1610275148569,4.00959,1302.3,1302.0,5.92318035]
[1610275149171,4.00959,1302.3,1301.4,5.86080289]
[1610275149172,4.00959,1302.3,1301.9,3.76157882]
[1610275149570,4.00959,1302.3,1301.5,3.76240044]
[1610275149970,4.00959,1302.3,1301.4,5.39235815]
[1610275150475,4.00959,1302.3,1301.4,1.6297]
[1610275150672,4.00959,1301.5,1301.3,3.76309213]
[1610275151074,4.00959,1301.5,1301.4,3.76310584]
[1610275151272,2.2647,1302.5,1301.4,3.76310584]
[1610275151472,5.6495,1303.4,1301.4,3.76310584]
[1610275151473,5.6495,1303.4,1301.4,2.0605]
[1610275151872,5.6495,1303.4,1301.7,3.76240026]
[1610275152072,5.6495,1303.4,1301.7,5.97030026]
[1610275152273,5.6495,1303.4,1301.8,3.76211644]
[1610275152673,5.6495,1303.4,1302.0,5.90499]
[1610275153675,5.6495,1303.4,1302.4,5.83938447]
[1610275154075,5.6495,1303.4,1302.5,3.75992212]
[1610275154276,5.6495,1303.4,1302.6,3.75981089]
[1610275154676,4.00959,1303.0,1302.5,7.76928176]
[1610275154875,5.6495,1303.4,1302.5,7.76928176]
[1610275155076,2.437,1303.6,1302.6,3.75950879]
[1610275155275,2.437,1303.6,1302.7,3.75916477]
[1610275155675,5.8652,1304.8,1302.8,3.75921961]
[1610275155875,59.1293,1304.8,1302.8,3.75921961]
[1610275156078,59.1293,1304.8,1303.0,30.0]
[1610275156275,53.2641,1304.8,1303.0,35.81004349]
[1610275156676,4.00959,1304.8,1303.9,30.0]
[1610275156875,6.1318,1306.1,1304.8,0.88561]
[1610275157076,6.1318,1306.1,1304.8,0.99041]
[1610275158679,0.04178964,1306.6,1305.0,34.00959]
[1610275160679,4.00959,1306.2,1305.0,34.00959]
[1610275160878,0.04178964,1306.6,1305.0,34.00959]
[1610275161284,0.04178964,1306.6,1305.0,7.76277698]
[1610275161680,0.04178964,1306.6,1305.0,4.00959]
[1610275162080,0.04178964,1306.6,1305.0,34.00959]
[1610275162680,4.00959,1306.3,1305.0,34.00959]
[1610275164182,4.00959,1306.3,1305.0,30.0]
[1610275164581,4.00959,1305.2,1305.0,34.00959]
[1610275164781,0.04178964,1306.6,1305.0,37.76259029]
[1610275165082,0.04178964,1306.6,1305.0,34.00959]
[1610275165482,0.04178964,1306.6,1305.0,37.76251812]
[1610275166583,4.00959,1306.0,1305.0,37.76251812]
[1610275166784,4.00959,1306.0,1305.0,4.00959]
[1610275166984,4.00959,1306.0,1305.0,34.00959]
[1610275167384,4.00959,1306.0,1305.0,37.76230546]
[1610275167784,4.00959,1306.0,1305.0,34.00959]
[1610275168685,4.00959,1306.2,1305.0,34.00959]
[1610275169587,0.04178964,1306.6,1305.0,34.00959]
[1610275169986,19.00959,1305.1,1305.0,34.00959]
[1610275170587,9.31979,1305.1,1305.0,34.00959]
[1610275171690,9.31979,1305.1,1305.0,38.22965435]
[1610275172487,9.31979,1305.1,1305.0,34.00959]
[1610275173890,0.04178964,1306.6,1305.0,34.00959]
[1610275174489,0.04178964,1306.6,1305.8,6.04576148]
[1610275174690,4.00959,1306.2,1305.9,4.00959]
[1610275175591,4.00959,1306.2,1305.4,1.5563]
[1610275176292,4.00959,1306.2,1305.4,31.5563]
[1610275176492,2.4203,1306.4,1305.4,31.5563]
[1610275176692,2.4203,1306.4,1306.1,4.00959]
[1610275177593,2.4203,1306.4,1306.1,34.00959]
[1610275178393,1.9006,1307.3,1306.1,34.00959]
[1610275178593,4.00959,1306.9,1306.4,4.00959]
[1610275178894,1.8313,1306.9,1306.4,4.00959]
[1610275179497,1.8313,1306.9,1306.4,34.00959]
[1610275179694,2.3459,1307.1,1306.9,3.1687]
[1610275180597,2.3459,1307.1,1307.0,4.00959]
[1610275180794,2.3459,1307.1,1306.9,3.1687]
[1610275182696,6.35549,1307.1,1306.9,3.1687]
[1610275183296,2.3459,1307.1,1306.9,3.1687]
[1610275184596,2.3459,1307.1,1307.0,4.00959]
[1610275184798,4.00959,1307.5,1307.0,4.00959]
[1610275185396,57.6048,1309.0,1307.0,34.00959]
[1610275185796,59.1778,1309.0,1307.0,34.00959]
[1610275186395,59.1778,1309.0,1307.0,4.00959]
[1610275186596,1.573,1309.0,1308.0,4.00959]
[1610275186796,1.573,1309.0,1307.4,1.8373]
[1610275188597,4.00959,1309.0,1308.8,4.00959]
[1610275190398,1.8698,1309.3,1308.8,4.00959]
[1610275190598,1.8698,1309.3,1309.2,4.00959]
[1610275190800,4.00959,1309.9,1309.2,4.00959]
[1610275192399,4.00959,1309.9,1308.8,1.7947]
[1610275192600,4.00959,1309.6,1308.9,4.00959]
[1610275194501,4.00959,1309.6,1308.8,1.7947]
[1610275194701,4.00959,1309.1,1308.6,4.00959]
[1610275195303,2.3444,1309.6,1308.6,4.00959]
[1610275196705,2.3444,1309.6,1308.5,2.1137]
[1610275196706,2.3444,1309.6,1309.5,4.00959]
[1610275197105,2.3444,1309.6,1308.7,3.7425677]
[1610275197504,2.3444,1309.6,1308.5,5.85653005]
[1610275198506,2.0712,1309.9,1308.6,3.74269859]
[1610275198704,5.7591,1311.1,1308.6,3.74269859]
[1610275198705,4.00959,1310.0,1308.6,3.74269859]
[1610275199105,4.00959,1310.0,1308.8,3.74207546]
[1610275199306,5.7591,1311.1,1308.8,5.42207546]
[1610275199906,5.7591,1311.1,1308.9,3.74187751]
[1610275200106,5.7591,1311.1,1309.0,3.7416791]
[1610275200407,5.7591,1311.1,1309.1,3.74163545]
[1610275200806,4.00959,1310.7,1310.4,4.00959]
[1610275201206,1.8023,1310.8,1310.4,4.00959]
[1610275202410,6.1194,1311.8,1310.4,4.00959]
[1610275202608,6.1194,1311.8,1310.2,1.9142]
[1610275202807,8.6122,1311.8,1310.6,4.00959]
[1610275204210,8.6122,1311.8,1310.2,1.9142]
[1610275204810,4.00959,1310.5,1310.2,1.9142]
[1610275205508,4.00959,1310.5,1309.9,1.8821]
[1610275206608,4.00959,1310.5,1309.1,5.93595113]
[1610275206809,1.6166,1311.0,1310.4,4.00959]
[1610275208811,1.6166,1311.0,1310.9,4.00959]
[1610275209813,4.00959,1311.1,1310.9,4.00959]
[1610275211213,9.64891,1310.5,1310.3,3.73777735]
[1610275211913,9.64891,1310.5,1310.4,3.73740154]
[1610275212313,9.64891,1310.5,1310.4,5.66440154]